Workbook

Sheet Input Data
B1: Average Rates of Pay Calculator
B2: Workshop Technicians | C2: Hourly Rate | E2: Front of House | F2: Hourly Rate | H2: Parts Dept. | I2: Hourly Rate | K2: Driver/Valeters | L2: Hourly Rate | N2: Management | O2: Hourly Rate | Q2: Apprentices | R2: Hourly Rate | T2: Other Staff | U2: Hourly Rate
B3: =COUNTIF($C$4:$C$25,">0") -> 4 | E3: =COUNTIF($F$4:$F$25,">0") -> 1 | H3: =COUNTIF($I$4:$I$25,">0") -> 1 | K3: =COUNTIF($L$4:$L$25,">0") -> 1 | N3: =COUNTIF($O$4:$O$25,">0") -> 1 | Q3: =COUNTIF($R$4:$R$25,">0") -> 1 | T3: =COUNTIF($U$4:$U$25,">0") -> 1
B4: Master Technician 1 | C4: 15 | E4: Reception Team Leader | F4: 10 | H4: Parts Manager | K4: Driver/Valeter Team Leader | L4: 9 | N4: Director | Q4: Apprentice 1 | R4: 6.5 | T4: Cleaner | U4: 9
B5: Master Technician 2 | E5: Receptionist 1 | H5: Parts Operative 1 | I5: 10 | K5: Driver/Valeter 1 | N5: Director | Q5: Apprentice 2 | T5: A N Other
B6: Master Technician 3 | E6: Receptionist 2 | H6: Parts Operative 2 | K6: Driver/Valeter 2 | N6: Workshop Manager | O6: 17 | Q6: Apprentice 3
B7: Technician 1 | C7: 10.5 | E7: Receptionist 3 | H7: Parts Operative 3 | K7: Driver/Valeter 3 | N7: Other | Q7: Apprentice 4
B8: Technician 2 | E8: Receptionist 4 | H8: Parts Operative 4 | K8: Driver/Valeter 4
B9: Technician 3
B10: Technician 4
B11: Technician 5
B12: Technician 6
B13: Technician 7
B14: Technician 8
B15: Technician 9
B16: Technician 10
B17: Technician 11
B18: Technician 12
B19: Mot Tester 1 | C19: 10
B20: Mot Tester 2 | C20: 11.8
B21: Mot Tester 3
B22: Mot Tester 4
B23: Fitter 1
B24: Fitter 2
B25: Fitter 3
B26: Average Technician Hourly Rate | C26: =(SUM(C4:C25))/B3 -> 11.825 | E26: Average Receptionist Hourly Rate | F26: =(SUM(F4:F25))/E3 -> 10 | H26: Average Parts Staff Hourly Rate | I26: =(SUM(I4:I25))/H3 -> 10 | K26: Average Driver/Valeter Hourly Rate | L26: =(SUM(L4:L25))/K3 -> 9 | N26: Average Management Hourly Rate | O26: =(SUM(O4:O25))/N3 -> 17 | Q26: Average Apprentice Hourly Rate | R26: =(SUM(R4:R25))/Q3 -> 6.5 | T26: Average Combined 'Other Staff' Hourly Rate | U26: =(SUM(U4:U25))/T3 -> 9
B29: You may use the average hourly rate information above to manually enter into the 'Hourly Rate Calculator' on the next tab, or click on the button below to automatically transfer the information. DO NOT use the button if the average shows '######' | E29: You may use the average hourly rate information above to manually enter into the 'Hourly Rate Calculator' on the next tab, or click on the button below to automatically transfer the information. DO NOT use the button if the average shows '######' | H29: You may use the average hourly rate information above to manually enter into the 'Hourly Rate Calculator' on the next tab, or click on the button below to automatically transfer the information. DO NOT use the button if the average shows '######' | K29: You may use the average hourly rate information above to manually enter into the 'Hourly Rate Calculator' on the next tab, or click on the button below to automatically transfer the information. DO NOT use the button if the average shows '######' | N29: You may use the average hourly rate information above to manually enter into the 'Hourly Rate Calculator' on the next tab, or click on the button below to automatically transfer the information. DO NOT use the button if the average shows '######' | Q29: You may use the average hourly rate information above to manually enter into the 'Hourly Rate Calculator' on the next tab, or click on the button below to automatically transfer the information. DO NOT use the button if the average shows '######' | T29: You may use the average hourly rate information above to manually enter into the 'Hourly Rate Calculator' on the next tab, or click on the button below to automatically transfer the information. DO NOT use the button if the average shows '######'

Sheet Hourly Rate Calculator
C2: Workshop Operating Times | K2: Overheads
C3: Workshop Operating Times From | D3: Workshop Operating Times To | E3: Daily Operating Hours | F3: Number of Technicians | G3: Total Break Time per Day | H3: Daily Hours Available | K3: Item | L3: Cost Per Annum
B4: Monday to Friday | C4: 08:30:00 | D4: 17:30:00 | E4: =D4-C4 -> 09:00:00 | F4: 4 | G4: 00:30:00 | H4: =((E4-G4)*F4) -> 1.416666667 | K4: Business Rates Payable | L4: 13200
B5: Saturday | C5: 08:30:00 | D5: 17:30:00 | E5: =D5-C5 -> 09:00:00 | F5: 4 | G5: 00:30:00 | H5: =(E5-G5)*F5 -> 1.416666667 | K5: Water Rates | L5: 2000
B6: Sunday | C6: 08:30:00 | D6: 17:30:00 | E6: 09:00:00 | F6: 4 | G6: 00:30:00 | H6: 1.416666667 | K6: Telephone/Broadband | L6: 2250
B7: Thursday | C7: 08:30:00 | D7: 17:30:00 | E7: 09:00:00 | F7: 4 | G7: 00:30:00 | H7: 1.416666667 | K7: Gas/Electricity | L7: 3000
B8: Friday | C8: 08:30:00 | D8: 17:30:00 | E8: 09:00:00 | F8: 4 | G8: 00:30:00 | H8: 1.416666667 | K8: Insurances | L8: 2875
B9: Saturday | C9: 08:30:00 | D9: 12:30:00 | E9: 04:00:00 | F9: 2 | G9: 00:00:00 | H9: 0.3333333333 | K9: Premises Lease/Mortgage | L9: 15000
B10: Sunday | C10: 08:30:00 | D10: 17:30:00 | E10: 09:00:00 | F10: 0 | G10: 00:00:00 | H10: 0 | K10: Equipment Costs/Rental | L10: 2600
B11: Total Weekly Operating Hours | E11: =SUM(E4:E10) -> 2.416666667 | F11: Annually Available Hrs. | H11: =(SUM(H4:H10)*52) -> 385.6666667 | K11: Loan Repayments | L11: 6000
C12: Technician Annual Holiday Entitlement Including Bank Holidays | H12: 28 | I12: Days | K12: Vehicle Costs | L12: 2500
F13: Total Holiday Hours | H13: =((H12*8)*E16)/24 -> 37.33333333 | I13: Hours | K13: Marketing/Advertising | L13: 1800
C14: Ave. Hourly Rate | D14: Hours Worked | E14: No. Staff In Dept | K14: Training & Recruitment | L14: 2250
H15: Weekly Cost | K15: Professional Fees | L15: 3800
B16: Technician(s) | C16: ='Input Data'!$C$26 -> 11.825 | D16: 40 | E16: ='Input Data'!$B$3 -> 4 | F16: If the data to the left has been imported from the data input tab, it can be overwritten manually if desired. | H16: =(C16*D16)*E16 -> 1892 | K16: Transaction Fees (Credit/Debit Cards) | L16: 1760
B17: Receptionist(s) | C17: ='Input Data'!$F$26 -> 10 | D17: 40 | E17: ='Input Data'!$E$3 -> 1 | H17: =C17*D17*E17 -> 400 | K17: Equipment Maintenance & Repair | L17: 2950
B18: Parts Department | C18: ='Input Data'!$I$26 -> 10 | D18: 40 | E18: ='Input Data'!$H$3 -> 1 | H18: =C18*D18*E18 -> 400 | K18: Hazardous Waste Disposal | L18: 1500
B19: Driver/Valeter(s) | C19: ='Input Data'!$L$26 -> 9 | D19: 45 | E19: ='Input Data'!$K$3 -> 1 | H19: 405 | K19: Consumables | L19: 0
B20: Manager(s) | C20: ='Input Data'!$O$26 -> 17 | D20: 40 | E20: ='Input Data'!$N$3 -> 1 | H20: 680 | K20: Security & Alarm Monitoring | L20: 200
B21: Apprentice(s) | C21: ='Input Data'!$R$26 -> 6.5 | D21: 40 | E21: ='Input Data'!$Q$3 -> 1 | H21: 260 | K21: Garage Management System Costs | L21: 2000
B22: Staff (Other) | C22: ='Input Data'!$U$26 -> 9 | D22: 38 | E22: ='Input Data'!$T$3 -> 1 | H22: 342 | K22: Miscellaneous Costs | L22: 1100
B23: Annual Staffing Costs | H23: =SUM(H16:H22)*52 -> 227708 | K23: Total Overheads | L23: =SUM(L4:L22) -> 66785
B25: Technician Efficiency | E25: 0.8 | F25: Saleable Hours
F26: =H11-H13 -> 348.3333333 | K26: Break Even Hourly Cost
H27: Per Annum | K27: =(H34/(F26*E25*24)) -> 50.09329306
B28: Staff Costs | H28: =H23 -> 227708
B29: Staff Benefits/Bonuses | H29: 2000
B30: Employer NI @ | C30: 0.138 | H30: =(H28+H29)*C30 -> 31699.704
B31: Pension contribution @ | C31: 0.03 | H31: =H28*C31 -> 6831.24
B32: Total Overheads | H32: =L23 -> 66785
K33: Enter Net Profit Margin Required | L33: 0.2
D34: Total Operating Costs | H34: =SUM(H28:H32) -> 335023.944 | K34: Charge Out Rate | L34: =(K27*L33)+K27 -> 60.11195167
B36: Disclaimer: The information and calculations within the calculation tool are designed as a guide only. The tool is intended for a review of labour costs and charge out rates. Parts, oils, coolants and other items sold through the garage will also contribute to the profitability of the business. Always consult your accountant or other financial advisors on business profitability and remember to take into account local competition before making any adjustments to your hourly rate. | K36: Potential Labour Sales Value If All Saleable Hours Billed at 'Charge Out Rate'
K38: =(F26*L34)*24 -> 502535.916
